[Event "XIII Marques de Pombal 2022"]
[Site "Pombal"]
[Date "2022.10.05"]
[Round "1.7"]
[White "Almeida, Joao Pedro Dias"]
[Black "Nogueira, Rafael Calade"]
[Result "1-0"]
[ECO "A30"]
[WhiteElo "1901"]
[BlackElo "1418"]
[Annotator "TA"]
[PlyCount "77"]
[EventDate "2022.09.28"]
[EventType "swiss"]
[EventCountry "POR"]
[SourceTitle "playchess.com"]
[Source "ChessBase"]
[SourceQuality "1"]
[TimeControl "5400+30"]

{[%evp 9,77,0,-12,-12,-14,-20,0,0,0,-36,-26,-31,-34,-62,-35,-52,-41,-50,-39,-70,-67,-104,-61,-76,-60,-66,-2,0,14,-72,-19,-93,-25,-23,0,0,0,-64,0,-27,29,29,104,105,280,280,527,525,622,620,907,890,846,864,968,941,895,859,2568,2421,1635,1504,29988,29986,29985,3101,29987,29988,29993,29994]} 1. c4 {[%emt 0:00:07]} c5 {[%emt 0:00:19]} 2. g3 {[%emt 0:00:18]} Nf6 {[%emt 0:00:16]} 3. Bg2 {[%emt 0:00:25]} Nc6 {[%emt 0:00:15]} 4. Nc3 {[%emt 0:00:30]} e6 {[%emt 0:00:15]} 5. d3 {[%emt 0:01:54]} d5 {[%emt 0:01:12][%cal Bd7d5,Bd5d4][%mdl 32]} 6. Bg5 {[%emt 0:06:23] A36: Symmetrical English vs ...g6: 4 Bg2 Bg7.} d4 {[%emt 0:09:30]} 7. Ne4 {[%emt 0:03:58]} Qa5+ {[%emt 0:01:34]} 8. Bd2 {[%emt 0:03:24] The position is equal.} Qd8 {[%emt 0:02:17] [#]} 9. h4 $146 {[%emt 0:16:33]} ({Predecessor:} 9. Nxf6+ Qxf6 10. Nf3 Bd6 11. O-O O-O 12. Ng5 Qd8 13. e4 f6 14. Nh3 e5 15. f4 {1-0 (43) Karlsson,L (2531)-Schneider,L (2338) Sweden 2006}) 9... Nxe4 {[%emt 0:09:26]} 10. Bxe4 {[%emt 0:00:10]} Qc7 {[%emt 0:01:17]} 11. Nh3 {[%emt 0:11:36]} b6 {[%emt 0:07:11]} 12. Qa4 {[%emt 0:05:20]} Bd7 {[%emt 0:03:49]} 13. Qc2 {[%emt 0:02:07]} Bd6 {[%emt 0:04:23]} 14. Nf4 {[%emt 0:02:18]} Rb8 {[%emt 0:02:38]} 15. h5 {[%emt 0:02:00]} Ne7 {[%emt 0:02:55]} 16. Rb1 {[%emt 0:07:13]} Bc6 {[%emt 0:08:35]} 17. b4 {[%emt 0:02:16]} Kd7 {[%emt 0:08:41]} (17... cxb4 $15 18. h6 g6 19. Bxb4 Bxb4+ 20. Rxb4 e5) 18. b5 {[%emt 0:01:10]} Bb7 {[%emt 0:00:35]} 19. a4 {[%emt 0:03:31]} (19. h6 $11) 19... f5 {[%emt 0:00:49]} ({Black should play} 19... g5 $1 $17 {[%cal Rg5f4]} 20. Ng2 f5 21. Bxb7 Qxb7) 20. Bf3 {[%emt 0:01:22] [#]} (20. Bxb7 $11 {keeps the balance.} Qxb7 21. f3) 20... Bxf3 {[%emt 0:01:43]} (20... g5 $1 $17 {[%cal Rg5f4]} 21. Ng2 {[#]} (21. hxg6 hxg6 22. Rf1 Bxf3 $19) 21... Bxg3 $1 {[%mdl 512]} 22. Bxg5 Rhg8) 21. exf3 $11 {[%emt 0:00:01]} Qb7 {[%emt 0:00:17]} (21... e5 $5 {[%cal Re5f4]} 22. Ng2 f4 $15) 22. Qd1 {[%emt 0:00:37]} e5 {[%emt 0:01:08]} 23. Nh3 {[%emt 0:02:46]} (23. Ng2 $11) 23... Rbe8 {[%emt 0:05:39]} ({Black should try} 23... h6 $15) 24. O-O {[%emt 0:04:25]} g6 {[%emt 0:03:09]} ({Better is} 24... h6) 25. h6 {[%emt 0:00:46]} Qc7 {[%emt 0:03:00]} (25... f4 $11) 26. Bg5 {[%emt 0:01:16]} e4 $2 {[%emt 0:02:45] Loses the game.} (26... Rhf8 $16 {was necessary.}) 27. fxe4 $18 {[%emt 0:01:23]} Bxg3 $2 {[%emt 0:00:28]} (27... Rhf8 28. a5 bxa5) 28. f4 {[%emt 0:00:07]} fxe4 {[%emt 0:04:45]} 29. dxe4 {[%emt 0:00:02]} Qb7 {[%emt 0:02:41]} 30. Qg4+ {[%emt 0:00:22]} Kc7 {[%emt 0:01:16]} 31. Qxg3 {[%emt 0:00:10]} Qxe4 {[%emt 0:01:23]} 32. Bxe7 {[%emt 0:00:12]} Qxe7 {[%emt 0:01:07]} 33. Rbe1 {[%emt 0:00:23]} Qf7 {[%emt 0:00:24]} 34. f5+ {[%emt 0:00:42]} Kc8 {[%emt 0:00:20]} 35. fxg6 {[%emt 0:00:20]} Qxc4 {[%emt 0:02:22]} 36. Rxe8+ {[%emt 0:00:11]} Rxe8 {[%emt 0:00:10]} 37. Qg4+ {[%emt 0:00:24]} (37. g7 $142 Qg8 38. Qd6 d3 39. Rf8 Rxf8 40. Qxf8+ Qxf8 41. gxf8=Q+ Kd7 42. Qf5+ Kd6 43. Nf4) 37... Kb8 {[%emt 0:01:49]} 38. g7 {[%emt 0:00:12]} Qxa4 {[%emt 0:00:51]} 39. g8=Q {[%emt 0:00:11] Weighted Error Value: White=0.18 (very precise) /Black=0.77} 1-0

[Event "XIII Marques de Pombal 2022"]
[Site "Pombal"]
[Date "2022.10.05"]
[Round "1.8"]
[White "Dias, Jose de Oliveira Gas"]
[Black "Farias, David Nuno Moita Est"]
[Result "0-1"]
[ECO "B50"]
[WhiteElo "1397"]
[BlackElo "1863"]
[Annotator "NA RC COMBH"]
[PlyCount "64"]
[EventDate "2022.09.28"]
[EventType "swiss"]
[EventCountry "POR"]
[SourceTitle "playchess.com"]
[Source "ChessBase"]
[SourceQuality "1"]
[TimeControl "5400+30"]

{[%evp 8,64,-5,-22,-19,-32,-8,32767,32767,-12,-20,-43,-35,-56,0,-68,-43,-47,-40,-67,-3,-1,30,36,20,-52,-41,-89,-60,-122,-126,-128,-103,-129,-55,-81,-54,-99,-102,-79,-99,-127,-121,-169,-159,-231,-213,-222,-172,-427,-439,-427,-501,-476,32767,32767,-29998,-29998,-29999]} 1. e4 c5 2. Nf3 d6 3. Bc4 e6 4. O-O Nf6 5. e5 dxe5 6. Nxe5 a6 7. a4 Bd6 8. Qe2 O-O 9. c3 Qc7 10. d4 {[#]} b6 (10... cxd4 $1 $17 11. cxd4 Nc6 12. Nxc6 bxc6) 11. Na3 (11. dxc5 $11 {is more appropriate.} Qxc5 12. Nf3) 11... Bb7 12. Bf4 Nc6 13. Rad1 (13. Rfd1 $142 $1) 13... Nd5 (13... cxd4 $15 14. cxd4 Rfc8) 14. Bg3 $1 Nxe5 (14... Nce7 {deserves consideration.}) 15. dxe5 Be7 16. h4 (16. Bb3 $11) 16... Qc6 $1 17. Bxd5 (17. Qf3 $15) 17... exd5 18. Qg4 ({Better is} 18. Nc2 $15) 18... Rad8 19. f3 Bc8 (19... f5 $142 20. Qf4 h6) 20. Qf4 d4 (20... h6 $17 21. Nc2 f6) 21. cxd4 cxd4 ({Don't take} 21... Qxa4 22. d5 Qxf4 23. Bxf4 $11) 22. Rc1 (22. Bf2 $15) 22... Qxa4 23. Nc4 Bc5 24. Kh1 d3 25. Ra1 (25. Nd6 $17 Qxf4 26. Bxf4) 25... Qb4 26. Nd2 (26. Nd6 $17 {was necessary.}) 26... Rd4 27. Ne4 Bb7 28. Rae1 $2 (28. Bf2) 28... d2 29. Rd1 Bxe4 30. fxe4 Rxe4 31. Qxd2 Rxh4+ 32. Bh2 {[#]} Rxh2+ $1 0-1

[Event "XIII Marques de Pombal 2022"]
[Site "Pombal"]
[Date "2022.10.05"]
[Round "2.1"]
[White "Silva, Reinaldo David Batis"]
[Black "Khamrakulov, Ibragim S."]
[Result "0-1"]
[ECO "A04"]
[WhiteElo "1775"]
[BlackElo "2421"]
[Annotator "TA"]
[PlyCount "58"]
[EventDate "2022.09.28"]
[EventType "swiss"]
[EventCountry "POR"]
[SourceTitle "playchess.com"]
[Source "ChessBase"]
[SourceQuality "1"]
[TimeControl "5400+30"]

{[%evp 10,58,-6,0,9,0,16,16,11,-4,14,-18,7,0,0,0,0,-2,-2,-4,-1,-7,8,-15,-9,-16,-16,-16,-16,-12,-14,-16,0,0,-3,-36,-6,-419,-408,-420,-418,-470,-484,-737,-716,-775,-726,-1176,-901,-29998,-29999]} 1. Nf3 {[%emt 0:00:12]} c5 {[%emt 0:01:05]} 2. e3 {[%emt 0:00:21]} g6 {[%emt 0:01:54]} 3. c4 {[%emt 0:01:01]} Nf6 {[%emt 0:01:02]} 4. b3 {[%emt 0:01:45]} Bg7 {[%emt 0:00:45]} 5. Bb2 {[%emt 0:00:13]} O-O {[%emt 0:00:42]} 6. d4 {[%emt 0:03:24]} d5 {[%emt 0:10:03] A30: Symmetrical English: Double Fianchetto and Hedgehog.} 7. Be2 {[%emt 0:11:11]} Qa5+ {[%emt 0:10:27] [#]} 8. Bc3 $146 {[%emt 0:01:38]} ({Predecessor:} 8. Qd2 Qxd2+ 9. Nbxd2 cxd4 10. Nxd4 Nc6 11. O-O Rd8 12. Rfd1 Nxd4 13. Bxd4 Be6 14. Rac1 dxc4 15. Nxc4 {½-½ (49) Schindler,C (2219)-Vlckova,K (1954) Germany 2017}) 8... Qc7 {[%emt 0:00:20] The position is equal.} 9. O-O {[%emt 0:08:12]} Rd8 {[%emt 0:01:18]} 10. Qc1 {[%emt 0:04:37]} dxc4 {[%emt 0:05:08]} 11. Bxc4 {[%emt 0:11:48]} Ne4 {[%emt 0:01:03]} 12. Bb2 {[%emt 0:04:41][%cal Ob3b4]} ({Much weaker is} 12. Nbd2 Nxc3 13. Qxc3 Nc6 $15) 12... Nc6 {[%emt 0:13:42][%cal Rc5d4,Bb8c6,Bc6e5,Be5g4][%mdl 32]} 13. Nc3 {[%emt 0:10:43]} Nxc3 {[%emt 0:01:09]} 14. Bxc3 {[%emt 0:00:11]} cxd4 {[%emt 0:05:40]} 15. Nxd4 {[%emt 0:03:18]} Ne5 {[%emt 0:01:39]} 16. Nb5 {[%emt 0:09:39]} Qc6 {[%emt 0:04:12]} 17. Nd4 {[%emt 0:03:09]} Qc5 {[%emt 0:02:57]} 18. Be2 {[%emt 0:05:51]} Bg4 {[%emt 0:00:35]} 19. Bxg4 {[%emt 0:03:35]} Nxg4 {[%emt 0:00:20]} 20. h3 {[%emt 0:05:30]} Rac8 {[%emt 0:07:42]} 21. hxg4 {[%emt 0:00:46] [#] Black must now prevent Bb2.} Qxc3 {[%emt 0:00:06]} 22. Qa3 {[%emt 0:00:55]} e5 {[%emt 0:02:33][%cal Be7e5,Be5d4][%mdl 32]} 23. Rac1 $2 {[%emt 0:02:17][%mdl 8192] White does not recover from this.} (23. Ne2 $11 {and White is okay.} Qd2 24. Ng3) 23... exd4 $19 {[%emt 0:00:34]} 24. Rxc3 {[%emt 0:00:56]} dxc3 {[%emt 0:00:12]} 25. Kh2 {[%emt 0:00:43]} c2 {[%emt 0:01:16] [#] Hoping for ...Rd1.} 26. Rc1 {[%emt 0:05:12]} (26. Qc1 $142 Bc3 27. Kg3) 26... Rd1 {[%emt 0:00:50]} 27. Rxc2 {[%emt 0:00:12]} Rxc2 {[%emt 0:00:08]} 28. Qxa7 {[%emt 0:00:30]} Rxf2 {[%emt 0:00:19] ( -> ...Be5+)} 29. a4 {[%emt 0:00:52]} Be5+ {[%emt 0:00:17] Weighted Error Value: White=0.95/Black=0.05 (flawless)} 0-1

[Event "XIII Marques de Pombal 2022"]
[Site "Pombal"]
[Date "2022.10.05"]
[Round "2.2"]
[White "Padeiro, Jose Joao Tato"]
[Black "Santos, Julio Fernandes dos"]
[Result "1-0"]
[ECO "A06"]
[WhiteElo "2215"]
[BlackElo "1760"]
[Annotator "TA"]
[PlyCount "65"]
[EventDate "2022.09.28"]
[EventType "swiss"]
[EventCountry "POR"]
[SourceTitle "playchess.com"]
[Source "ChessBase"]
[SourceQuality "1"]
[TimeControl "5400+30"]

{[%evp 9,65,13,21,0,12,0,6,0,34,36,29,17,16,18,37,16,20,13,17,17,7,0,47,28,36,20,118,106,81,71,161,160,161,165,166,168,177,140,276,257,283,261,281,285,272,233,318,296,559,445,694,686,637,638,634,610,577,541]} 1. Nf3 {[%emt 0:00:04]} d5 {[%emt 0:00:22]} 2. c4 {[%emt 0:00:05]} e6 {[%emt 0:00:12]} 3. b3 {[%emt 0:00:10]} Nf6 {[%emt 0:00:54]} 4. Bb2 {[%emt 0:00:08]} Be7 {[%emt 0:00:07]} 5. e3 {[%emt 0:00:12]} b6 {[%emt 0:00:54]} 6. Nc3 {[%emt 0:00:11] A13: English Opening: 1...e6.} Bb7 {[%emt 0:00:08]} 7. Qc2 {[%emt 0:01:32]} Nbd7 {[%emt 0:00:34]} 8. Be2 {[%emt 0:02:51] [#] The position is equal.} h6 $146 {[%emt 0:01:32]} ({Predecessor:} 8... a6 9. Rc1 O-O 10. O-O c5 11. cxd5 exd5 12. d4 Bd6 13. Rfd1 Qe7 14. Qf5 Rfe8 {1-0 (81) Vinter Schou,U (2316)-Nielsen,V (2319) Kolding 2022}) 9. O-O {[%emt 0:00:31]} O-O {[%emt 0:00:07]} 10. Rac1 {[%emt 0:00:56]} Re8 {[%emt 0:02:35]} 11. Rfd1 {[%emt 0:01:47]} a5 {[%emt 0:06:57]} 12. cxd5 {[%emt 0:04:33]} exd5 {[%emt 0:01:35]} 13. d4 {[%emt 0:00:05]} c6 {[%emt 0:01:09]} 14. Ne5 {[%emt 0:05:08]} Bd6 {[%emt 0:01:11]} 15. f4 {[%emt 0:00:23][%cal Bf2f4,Bf4e5][%mdl 32]} Nf8 {[%emt 0:13:42]} (15... b5 $11) 16. Bf3 {[%emt 0:05:10]} Qe7 {[%emt 0:00:33]} 17. Na4 {[%emt 0:11:00]} Bxe5 {[%emt 0:01:16]} (17... N8d7 $11 {remains equal.}) 18. fxe5 {[%emt 0:04:11]} N6d7 {[%emt 0:00:16]} 19. e4 {[%emt 0:00:41] White is more active.} Rac8 {[%emt 0:03:26] [#]} (19... dxe4 $16 20. Bxe4 Rac8) 20. exd5 $1 $18 {[%emt 0:03:30]} cxd5 {[%emt 0:00:40]} 21. Nc3 {[%emt 0:02:28][%cal Ba4c3,Bc3b5,Bb5d6][%mdl 32]} Ne6 {[%emt 0:06:15]} 22. Qf2 {[%emt 0:04:18]} Nc7 {[%emt 0:07:59]} 23. Bg4 {[%emt 0:01:36][%cal Ob2a3] This bishop pair is nice.} Ne6 {[%emt 0:00:45]} (23... b5 $16) 24. Nb5 {[%emt 0:01:50]} Rxc1 {[%emt 0:01:18]} 25. Bxc1 {[%emt 0:00:14]} ({Don't do} 25. Rxc1 $6 Rd8 26. h4 Ba6 $18) 25... Rc8 {[%emt 0:08:53]} 26. Nd6 {[%emt 0:05:55]} Rc7 {[%emt 0:00:11]} 27. Ba3 {[%emt 0:01:33]} Rc6 {[%emt 0:04:25]} 28. Bf3 {[%emt 0:08:59]} ({Don't play} 28. Nxb7 $6 Qxa3 29. Rf1 (29. Bxe6 fxe6 30. Nd8 Rc1 $11) 29... Qe7 $18) 28... Nc7 {[%emt 0:01:38]} (28... Rxd6 {was necessary.} 29. Bxd6 Qe8) 29. Qg3 {[%emt 0:01:49] [#] aiming for Rf1. White is clearly winning.} Ne8 {[%emt 0:01:34]} (29... Kh7 $142 30. h4 f6) 30. Bxd5 {[%emt 0:02:55]} Nxd6 {[%emt 0:06:39]} 31. exd6 {[%emt 0:03:47]} Qf6 {[%emt 0:00:47]} 32. Qf3 {[%emt 0:01:28] Prevents Rc3.} Qxf3 {[%emt 0:05:30]} 33. Bxf3 {[%emt 0:00:29] Weighted Error Value: White=0.14 (very precise) /Black=0.48} 1-0

[Event "XIII Marques de Pombal 2022"]
[Site "Pombal"]
[Date "2022.10.05"]
[Round "2.3"]
[White "Moldovan, Lucas Gabriel"]
[Black "Povshednyi, Ivan"]
[Result "0-1"]
[ECO "B25"]
[WhiteElo "1712"]
[BlackElo "2140"]
[Annotator "TA"]
[PlyCount "50"]
[EventDate "2022.09.28"]
[EventType "swiss"]
[EventCountry "POR"]
[SourceTitle "playchess.com"]
[Source "ChessBase"]
[SourceQuality "1"]
[TimeControl "5400+30"]

{[%evp 11,50,-26,-14,-15,0,-22,-17,-24,0,-29,-12,-12,0,-17,-25,-51,-66,-85,-81,-100,-100,-96,-67,-64,-60,-63,-54,-121,-110,-500,-494,-534,-458,-491,-487,-490,-452,-488,-485,-477,-474]} 1. e4 {[%emt 0:00:17]} c5 {[%emt 0:00:17]} 2. Nc3 {[%emt 0:00:26]} Nc6 {[%emt 0:00:32]} 3. g3 {[%emt 0:00:49]} g6 {[%emt 0:00:15]} 4. Bg2 {[%emt 0:00:31]} Bg7 {[%emt 0:00:11]} 5. d3 {[%emt 0:00:51]} d6 {[%emt 0:00:15]} 6. Nh3 {[%emt 0:03:13]} Rb8 {[%emt 0:11:49]} 7. O-O {[%emt 0:09:07] B25: Closed Sicilian: 3 g3, lines without early Be3.} Nf6 {[%emt 0:10:08]} 8. Ne2 {[%emt 0:08:57] [#]} O-O $146 {[%emt 0:03:34]} ({Predecessor:} 8... Bg4 9. f3 Bd7 10. c3 b5 11. Ng5 Qc8 12. f4 b4 13. c4 h6 14. Nf3 Bh3 15. Qa4 {½-½ (59) Fiedler,J-Meier,N Weiler 1993}) 9. f4 {[%emt 0:05:17] The position is equal.} Bd7 {[%emt 0:08:44]} 10. c3 {[%emt 0:14:17]} Qc8 {[%emt 0:01:42]} 11. Nf2 {[%emt 0:01:35]} Ng4 {[%emt 0:00:42]} 12. Bd2 {[%emt 0:08:34]} b5 {[%emt 0:02:09][%cal Bb7b5,Bb5b4][%mdl 32]} 13. Rb1 {[%emt 0:05:22]} b4 {[%emt 0:02:52]} 14. Nxg4 {[%emt 0:02:55]} Bxg4 {[%emt 0:00:10]} 15. Bf3 {[%emt 0:00:04]} Bxf3 {[%emt 0:01:09]} 16. Rxf3 {[%emt 0:00:42]} Qb7 {[%emt 0:08:42]} 17. cxb4 {[%emt 0:06:54]} Nxb4 {[%emt 0:01:01]} 18. a3 {[%emt 0:05:38]} Nc6 {[%emt 0:00:21] Black is more active.} 19. b4 {[%emt 0:02:41]} ({White should try} 19. Bc3 $15) 19... cxb4 $17 {[%emt 0:02:16]} 20. Bxb4 {[%emt 0:00:40][%mdl 8192] [#] This costs White the game.} (20. axb4 $17 a5 21. b5) 20... a5 $19 {[%emt 0:00:29] Black is clearly winning.} 21. Rf1 {[%emt 0:03:47]} axb4 {[%emt 0:00:17]} 22. axb4 {[%emt 0:00:03]} Nd4 {[%emt 0:00:21]} 23. Nxd4 {[%emt 0:00:11]} Qb6 {[%emt 0:00:10]} 24. b5 {[%emt 0:00:34]} Qxd4+ {[%emt 0:00:09]} ({But not} 24... Bxd4+ $2 25. Kg2 $19) 25. Kg2 {[%emt 0:00:05]} Rfc8 {[%emt 0:00:49] Weighted Error Value: White=0.48/Black=0.15 (very precise)} 0-1

[Event "XIII Marques de Pombal 2022"]
[Site "Pombal"]
[Date "2022.10.05"]
[Round "2.4"]
[White "Goncalves, Samuel Jesus Pereira"]
[Black "Gama, Joao Tiago Corregedo"]
[Result "1/2-1/2"]
[ECO "E10"]
[WhiteElo "2072"]
[BlackElo "1685"]
[Annotator "TA"]
[PlyCount "122"]
[EventDate "2022.09.28"]
[EventType "swiss"]
[EventCountry "POR"]
[SourceTitle "playchess.com"]
[Source "ChessBase"]
[SourceQuality "1"]
[TimeControl "5400+30"]

{[%evp 14,122,12,-1,-1,-34,-31,-42,-18,-32,-27,-22,0,0,0,0,6,2,6,0,16,16,16,16,76,13,6,16,42,42,42,42,42,42,42,35,35,35,35,27,27,16,27,-7,0,-24,27,27,27,0,27,27,27,27,27,0,0,0,0,0,0,0,0,0,0,0,0,0,0,-37,0,-2,0,0,0,-53,0,0,0,0,0,0,0,0,0,0,0,0,0,0,0,0,0,0,0,0,0,0,0,0,0,0,0,0,0,0,0,0,0,0,0]} 1. d4 {[%emt 0:00:04]} Nf6 {[%emt 0:00:06]} 2. c4 {[%emt 0:00:15]} e6 {[%emt 0:00:04]} 3. Nf3 {[%emt 0:00:34]} d5 {[%emt 0:01:08]} 4. cxd5 {[%emt 0:03:16]} exd5 {[%emt 0:00:07]} 5. Nc3 {[%emt 0:00:55]} c6 {[%emt 0:02:20]} 6. Bg5 {[%emt 0:01:43]} Be7 {[%emt 0:03:30]} 7. e3 {[%emt 0:00:55]} Bf5 {[%emt 0:00:06]} 8. h3 {[%emt 0:08:01]} Nbd7 {[%emt 0:05:13] D35: Queen's Gambit Declined: Exchange Variation.} 9. g4 {[%emt 0:01:09]} Bg6 {[%emt 0:02:22] [#]} 10. Qb3 $146 {[%emt 0:09:59]} ({Predecessor:} 10. Nh4 Ne4 11. Bxe7 Qxe7 12. Nxg6 hxg6 13. Bd3 Ndf6 14. a3 Rh4 15. Nxe4 Nxe4 16. Qf3 {1-0 (30) Cordts,E (1787)-Im Brook,J Fuerth 2015}) 10... Qb6 {[%emt 0:06:07] Black is slightly better.} 11. Be2 {[%emt 0:01:52]} Qxb3 {[%emt 0:05:58]} 12. axb3 {[%emt 0:00:07][%cal Ba2b3,Bb3b4,Bb4c5][%mdl 32]} Ne4 {[%emt 0:00:15]} 13. Bxe7 {[%emt 0:01:57]} Kxe7 {[%emt 0:00:06]} 14. Nd2 {[%emt 0:01:47]} Nxd2 {[%emt 0:06:52]} 15. Kxd2 {[%emt 0:00:19]} h5 {[%emt 0:00:04]} 16. g5 {[%emt 0:06:24]} Nf8 {[%emt 0:12:31]} 17. b4 {[%emt 0:13:45]} Ne6 {[%emt 0:04:27]} 18. h4 {[%emt 0:09:41]} Kd6 {[%emt 0:07:43]} (18... a6 $11) 19. Na4 {[%emt 0:05:51] White is more active.} (19. b5 $16) 19... a6 $11 {[%emt 0:06:09]} 20. Nc5 {[%emt 0:01:33]} Nxc5 {[%emt 0:02:51]} 21. bxc5+ {[%emt 0:00:11]} Kc7 {[%emt 0:00:43]} 22. Ra3 {[%emt 0:02:26]} Rhe8 {[%emt 0:01:25]} 23. Rb3 {[%emt 0:05:19]} Re7 {[%emt 0:04:16]} 24. Rf1 {[%emt 0:03:05]} Rh8 {[%emt 0:03:28]} 25. Ra1 {[%emt 0:01:34]} Re4 {[%emt 0:02:57]} 26. f4 {[%emt 0:01:53]} Ree8 {[%emt 0:03:16]} 27. Rb6 {[%emt 0:02:03][%cal Oe2a6]} Ra8 {[%emt 0:01:11]} 28. Ra3 {[%emt 0:05:26]} Be4 {[%emt 0:01:38]} 29. Rb4 {[%emt 0:02:39]} g6 {[%emt 0:00:43]} (29... f6 $142) 30. Rab3 {[%emt 0:01:10]} Ra7 {[%emt 0:03:29]} 31. Ra3 {[%emt 0:00:55]} Re8 {[%emt 0:00:59]} 32. Ra1 {[%emt 0:00:40]} Raa8 {[%emt 0:02:51]} 33. Rba4 {[%emt 0:00:29]} Re7 {[%emt 0:01:18]} 34. b4 {[%emt 0:00:17][%cal Ob4b5]} Rb8 {[%emt 0:00:05]} 35. Rf1 {[%emt 0:01:58]} Bf5 {[%emt 0:02:33]} 36. Ra3 {[%emt 0:01:00]} Kd7 {[%emt 0:00:10]} 37. Rg1 {[%emt 0:03:13]} Rbe8 {[%emt 0:01:00]} 38. Rg3 {[%emt 0:00:12]} Ke6 {[%emt 0:01:20]} 39. Ra1 {[%emt 0:00:29]} Be4 {[%emt 0:01:35]} 40. Rf1 {[%emt 0:01:37]} Bf5 {[%emt 0:00:10]} 41. Rf2 {[%emt 0:00:39]} Be4 {[%emt 0:01:32]} 42. Bf1 {[%emt 0:00:39]} Bf5 {[%emt 0:00:08]} 43. Bg2 {[%emt 0:00:41]} Ra8 {[%emt 0:01:23]} 44. Kc1 {[%emt 0:00:37]} (44. Rf1 $11) 44... Kd7 {[%emt 0:00:27]} (44... b5 $15) 45. Ra2 {[%emt 0:00:14] The position is equal.} Rae8 {[%emt 0:00:08]} 46. Kd2 {[%emt 0:00:31]} Kc7 {[%emt 0:00:26]} 47. Ra1 {[%emt 0:01:04]} Kd7 {[%emt 0:00:04]} 48. Ra3 {[%emt 0:00:32]} Ke6 {[%emt 0:00:41]} 49. Ra2 {[%emt 0:00:21]} Kd7 {[%emt 0:00:05]} 50. Ra1 {[%emt 0:00:19]} Ke6 {[%emt 0:00:05]} 51. Rf3 {[%emt 0:01:14]} Be4 {[%emt 0:00:30]} 52. Bh3+ {[%emt 0:00:07]} Bf5 $1 {[%emt 0:00:10]} 53. Bf1 {[%emt 0:00:18]} Rb8 {[%emt 0:01:22]} 54. Kc3 {[%emt 0:01:10]} Kd7 {[%emt 0:00:21]} 55. Re1 {[%emt 0:00:33]} Rbe8 {[%emt 0:00:11]} 56. Kd2 {[%emt 0:00:29]} Ke6 {[%emt 0:00:39]} 57. Kc3 {[%emt 0:00:24]} Kd7 {[%emt 0:00:09]} 58. Kd2 {[%emt 0:01:00]} Ke6 {[%emt 0:00:05]} 59. Bg2 {[%emt 0:00:11]} Be4 {[%emt 0:00:24]} 60. Bh3+ {[%emt 0:00:23]} Bf5 $1 {[%emt 0:00:04]} 61. Bf1 {[%emt 0:01:29]} Kd7 {[%emt 0:01:24] Weighted Error Value: White=0.08 (flawless) /Black=0.07 (flawless)} 1/2-1/2